fUSD/lending_fUSD_20240210
["ID","MTS","AMOUNT","RATE_DAILY","PERIOD"]
[313656775,1707545449767,-500.0,0.00024657,2]
[313656776,1707545449777,-500.0,0.00024657,2]
[313656777,1707545449788,-500.0,0.00024657,2]
[313656778,1707545449797,-500.0,0.00024657,2]
[313656779,1707545449809,-500.0,0.00024657,2]
[313656780,1707545449819,-500.0,0.00024657,2]
[313656781,1707545449828,-500.0,0.00024657,2]
[313656782,1707545449838,-500.0,0.00024657,2]
[313656783,1707545449847,-500.0,0.00024657,2]
[313656784,1707545449857,-500.0,0.00024657,2]
[313656785,1707545449867,-500.0,0.00024657,2]
[313656786,1707545449876,-500.0,0.00024657,2]
[313656787,1707545449885,-500.0,0.00024657,2]
[313656788,1707545449894,-500.0,0.00024657,2]
[313656789,1707545449903,-500.0,0.00024657,2]
[313656790,1707545449913,-500.0,0.00024657,2]
[313656791,1707545449923,-500.0,0.00024657,2]
[313656792,1707545449933,-5000.0,0.00024657,2]
[313656793,1707545449942,-514.90137385,0.00024657,2]
[313656794,1707545449952,-518.19770418,0.00024657,2]
[313656795,1707545449962,-500.0,0.00024657,2]
[313656796,1707545449971,-917.38,0.00024657,2]
[313656797,1707545449980,-150.0,0.00024657,2]
[313656798,1707545449990,-500.0,0.00024657,2]
[313656799,1707545449999,-500.0,0.00024657,2]
[313656800,1707545450009,-500.0,0.00024657,2]
[313656801,1707545450018,-500.0,0.00024657,2]
[313656802,1707545450028,-178.4,0.00024657,2]
[313656803,1707545450037,-500.0,0.00024657,2]
[313656804,1707545450047,-500.0,0.00024657,2]
[313656805,1707545450057,-500.0,0.00024657,2]
[313656806,1707545450066,-500.0,0.00024657,2]
[313656807,1707545450076,-500.0,0.00024657,2]
[313656808,1707545450085,-500.0,0.00024657,2]
[313656809,1707545450095,-500.0,0.00024657,2]
[313656810,1707545450104,-500.0,0.00024657,2]
[313656811,1707545450114,-500.0,0.00024657,2]
[313656812,1707545450124,-500.0,0.00024657,2]
[313656813,1707545450133,-447.40649184,0.00024657,7]
[313656814,1707545450168,-552.59350816,0.00024657,7]
[313656815,1707545450177,-500.0,0.00024657,2]
[313656816,1707545450187,-500.0,0.00024657,2]
[313656817,1707545450197,-500.0,0.00024657,2]
[313656818,1707545450206,-500.0,0.00024657,2]
[313656819,1707545450215,-500.0,0.00024657,2]
[313656820,1707545450224,-500.0,0.00024657,2]
[313656821,1707545450235,-500.0,0.00024657,2]
[313656822,1707545450244,-500.0,0.00024657,2]
[313656823,1707545450254,-500.0,0.00024657,2]
[313656824,1707545450263,-500.0,0.00024657,2]
[313656825,1707545450272,-500.0,0.00024657,2]
[313656826,1707545450282,-500.0,0.00024657,2]
[313656827,1707545450292,-500.0,0.00024657,2]
[313656828,1707545450302,-500.0,0.00024657,2]
[313656829,1707545450312,-500.0,0.00024657,2]
[313656830,1707545450321,-521.93911439,0.00024657,2]
[313656831,1707545450331,-500.0,0.00024657,2]
[313656832,1707545450340,-500.0,0.00024657,2]
[313656833,1707545450350,-500.0,0.00024657,2]
[313656834,1707545450360,-500.0,0.00024657,2]
[313656835,1707545450371,-500.0,0.00024657,2]
[313656836,1707545450381,-545.16,0.00024657,2]
[313656837,1707545450391,-528.28296502,0.00024657,2]
[313656838,1707545450400,-500.0,0.00024657,2]
[313656839,1707545450410,-500.0,0.00024657,2]
[313656840,1707545450419,-538.68853796,0.00024657,2]
[313656841,1707545450428,-600.98,0.00024657,2]
[313656842,1707545450438,-828.15,0.00024657,2]
[313656843,1707545450448,-500.0,0.00024657,2]
[313656844,1707545450458,-500.0,0.00024657,2]
[313656845,1707545450468,-515.41486438,0.00024657,2]
[313656846,1707545450478,-500.0,0.00024657,2]
[313656847,1707545450487,-500.0,0.00024657,2]
[313656848,1707545450497,-500.0,0.00024657,2]
[313656849,1707545450507,-500.0,0.00024657,2]
[313656850,1707545450518,-500.0,0.00024657,2]
[313656851,1707545450528,-500.0,0.00024657,2]
[313656852,1707545450538,-500.0,0.00024657,2]
[313656853,1707545450548,-500.0,0.00024657,2]
[313656854,1707545450558,-500.0,0.00024657,2]
[313656855,1707545450568,-500.0,0.00024657,2]
[313656856,1707545450578,-597.85491177,0.00024657,2]
[313656857,1707545450588,-519.21,0.00024657,2]
[313656858,1707545450597,-500.0,0.00024657,2]
[313656859,1707545450607,-500.0,0.00024657,2]
[313656860,1707545450617,-500.0,0.00024657,2]
[313656861,1707545450626,-500.0,0.00024657,2]
[313656862,1707545450636,-500.0,0.00024657,2]
[313656863,1707545450645,-500.0,0.00024657,2]
[313656864,1707545450655,-556.3,0.00024657,2]
[313656865,1707545450664,-500.0,0.00024657,2]
[313656866,1707545450674,-500.0,0.00024657,2]
[313656867,1707545450683,-500.0,0.00024657,2]
[313656868,1707545450693,-532.35569174,0.00024657,2]
[313656869,1707545450702,-500.0,0.00024657,2]
[313656870,1707545450714,-500.0,0.00024657,2]
[313656871,1707545450723,-500.0,0.00024657,2]
[313656872,1707545450733,-500.0,0.00024657,2]
[313656873,1707545450742,-868.51,0.00024657,2]
[313656874,1707545450751,-500.0,0.00024657,2]
[313656875,1707545450761,-500.0,0.00024657,2]
[313656876,1707545450772,-500.0,0.00024657,2]
[313656877,1707545450781,-500.0,0.00024657,2]
[313656878,1707545450793,-500.0,0.00024657,2]
[313656879,1707545450803,-500.0,0.00024657,2]
[313656880,1707545450812,-500.0,0.00024657,2]
[313656881,1707545450821,-500.0,0.00024657,2]
[313656882,1707545450831,-500.0,0.00024657,2]
[313656883,1707545450841,-500.0,0.00024657,2]
[313656884,1707545450850,-500.0,0.00024657,2]
[313656885,1707545450860,-500.0,0.00024657,2]
[313656886,1707545450869,-500.0,0.00024657,2]
[313656887,1707545450879,-507.24174519,0.00024657,2]
[313656888,1707545450888,-500.0,0.00024657,2]
[313656889,1707545450898,-500.0,0.00024657,2]
[313656890,1707545450909,-500.0,0.00024657,2]
[313656891,1707545450918,-500.0,0.00024657,2]
[313656892,1707545450929,-602.17,0.00024657,2]
[313656893,1707545450939,-521.36328858,0.00024657,2]
[313656894,1707545450949,-500.0,0.00024657,2]
[313656895,1707545450958,-500.0,0.00024657,2]
[313656896,1707545450967,-500.0,0.00024657,2]
[313656897,1707545450977,-500.0,0.00024657,2]
[313656898,1707545450986,-500.0,0.00024657,2]
[313656899,1707545450996,-1329.31,0.00024657,2]
[313656900,1707545451005,-500.0,0.00024657,2]
[313656901,1707545451015,-739.92,0.00024657,2]
[313656902,1707545451024,-500.0,0.00024657,2]
[313656903,1707545451034,-501.83,0.00024657,2]
[313656904,1707545451043,-500.0,0.00024657,2]
[313656905,1707545451053,-518.30057114,0.00024657,2]
[313656906,1707545451063,-500.0,0.00024657,2]
[313656907,1707545451072,-516.59307434,0.00024657,2]
[313656908,1707545451082,-500.0,0.00024657,2]
[313656909,1707545451092,-500.0,0.00024657,2]
[313656910,1707545451101,-500.0,0.00024657,2]
[313656911,1707545451111,-500.0,0.00024657,2]
[313656912,1707545451120,-500.0,0.00024657,2]
[313656913,1707545451130,-500.0,0.00024657,2]
[313656914,1707545451140,-500.0,0.00024657,2]
[313656915,1707545451150,-500.0,0.00024657,2]
[313656916,1707545451160,-500.0,0.00024657,2]
[313656917,1707545451169,-500.0,0.00024657,2]
[313656918,1707545451179,-908.93,0.00024657,2]
[313656919,1707545451188,-500.0,0.00024657,2]
[313656920,1707545451198,-515.01777818,0.00024657,2]
[313656921,1707545451207,-510.39172011,0.00024657,2]
[313656922,1707545451216,-580.63,0.00024657,2]
[313656923,1707545451226,-500.0,0.00024657,2]
[313656924,1707545451235,-516.77903381,0.00024657,2]
[313656925,1707545451245,-500.0,0.00024657,2]
[313656926,1707545451255,-515.72025532,0.00024657,2]
[313656927,1707545451264,-500.0,0.00024657,2]
[313656928,1707545451274,-500.0,0.00024657,2]
[313656929,1707545451283,-500.0,0.00024657,2]
[313656930,1707545451293,-500.0,0.00024657,2]
[313656931,1707545451303,-500.0,0.00024657,2]
[313656932,1707545451312,-508.3979808,0.00024657,2]
[313656933,1707545451322,-1035.04,0.00024657,2]
[313656934,1707545451331,-500.0,0.00024657,2]
[313656935,1707545451341,-500.0,0.00024657,2]
[313656936,1707545451351,-544.64,0.00024657,2]
[313656937,1707545451361,-500.0,0.00024657,2]
[313656938,1707545451370,-500.0,0.00024657,2]
[313656939,1707545451380,-500.0,0.00024657,2]
[313656940,1707545451389,-500.0,0.00024657,2]
[313656941,1707545451399,-500.0,0.00024657,2]
[313656942,1707545451409,-500.0,0.00024657,2]
[313656943,1707545451418,-500.0,0.00024657,2]
[313656944,1707545451429,-500.0,0.00024657,2]
[313656945,1707545451438,-500.0,0.00024657,2]
[313656946,1707545451448,-500.0,0.00024657,2]
[313656947,1707545451458,-500.0,0.00024657,2]
[313656948,1707545451467,-500.0,0.00024657,2]
[313656949,1707545451477,-500.0,0.00024657,2]
[313656950,1707545451487,-500.0,0.00024657,2]
[313656951,1707545451498,-627.49,0.00024657,2]
[313656952,1707545451508,-816.1,0.00024657,2]
[313656953,1707545451518,-524.82,0.00024657,2]
[313656954,1707545451527,-268.9962878,0.00024657,2]
[313656955,1707545451537,-510.94127991,0.00024657,2]
[313656956,1707545451547,-500.0,0.00024657,2]
[313656957,1707545451557,-500.0,0.00024657,2]
[313656958,1707545451566,-1156.27,0.00024657,2]
[313656959,1707545451576,-500.0,0.00024657,2]
[313656960,1707545451586,-500.0,0.00024657,2]
[313656961,1707545451596,-500.0,0.00024657,2]
[313656962,1707545451606,-646.6,0.00024657,2]
[313656963,1707545451615,-500.0,0.00024657,2]
[313656964,1707545451625,-3429.49,0.00024657,2]
[313656965,1707545451634,-500.0,0.00024657,2]
[313656966,1707545451643,-626.9,0.00024657,2]
[313656967,1707545451653,-500.0,0.00024657,2]
[313656968,1707545451663,-2751.4,0.00024657,2]
[313656969,1707545451673,-500.0,0.00024657,2]
[313656970,1707545451682,-1575.54,0.00024657,2]
[313656971,1707545451691,-500.0,0.00024657,2]
[313656972,1707545451700,-500.0,0.00024657,2]
[313656973,1707545451711,-500.0,0.00024657,2]
[313656974,1707545451722,-15986.28,0.00024657,2]
[313656975,1707545451732,-4233.42,0.00024657,2]
[313656976,1707545451741,-3525.48,0.00024657,2]
[313656977,1707545451751,-3096.17,0.00024657,2]
[313656978,1707545451761,-500.0,0.00024657,2]
[313656979,1707545451771,-500.0,0.00024657,2]
[313656980,1707545451780,-500.0,0.00024657,2]
[313656981,1707545451790,-500.0,0.00024657,2]
[313656982,1707545451801,-500.0,0.00024657,2]
[313656983,1707545451811,-1691.46,0.00024657,2]
[313656984,1707545451821,-1369.16,0.00024657,2]
[313656985,1707545451831,-500.0,0.00024657,2]
[313656986,1707545451840,-500.0,0.00024657,2]
[313656987,1707545451849,-925.92,0.00024657,2]
[313656988,1707545451859,-500.0,0.00024657,2]
[313656989,1707545451869,-500.0,0.00024657,2]
[313656990,1707545451878,-500.0,0.00024657,2]
[313656991,1707545451887,-1193.73,0.00024657,2]
[313656992,1707545451897,-732.41,0.00024657,2]
[313656993,1707545451906,-500.0,0.00024657,2]
[313656994,1707545451917,-865.44,0.00024657,2]
[313656995,1707545451927,-500.0,0.00024657,2]
[313656996,1707545451936,-500.0,0.00024657,2]
[313656997,1707545451946,-1145.35,0.00024657,2]
[313656998,1707545451955,-500.0,0.00024657,2]
[313656999,1707545451965,-500.0,0.00024657,2]
[313657000,1707545451975,-500.0,0.00024657,2]
[313657001,1707545451985,-9584.11,0.00024657,2]
[313657002,1707545451994,-500.0,0.00024657,2]
[313657003,1707545452004,-500.0,0.00024657,2]
[313657004,1707545452014,-519.14,0.00024657,2]
[313657005,1707545452024,-500.0,0.00024657,2]
[313657006,1707545452033,-500.0,0.00024657,2]
[313657007,1707545452042,-3358.02,0.00024657,2]
[313657008,1707545452113,-500.0,0.00024657,2]
[313657009,1707545452123,-500.0,0.00024657,2]
[313657010,1707545452132,-500.0,0.00024657,2]
[313657011,1707545452142,-500.0,0.00024657,2]
[313657012,1707545452152,-7994.11,0.00024657,2]
[313657013,1707545452161,-5501.51,0.00024657,2]
[313657014,1707545452171,-4357.35,0.00024657,2]
[313657015,1707545452180,-500.0,0.00024657,2]
[313657016,1707545452190,-500.0,0.00024657,2]
[313657017,1707545452199,-500.0,0.00024657,2]
[313657018,1707545452208,-4005.94,0.00024657,2]
[313657019,1707545452218,-3309.55,0.00024657,2]
[313657020,1707545452227,-2238.14,0.00024657,2]
[313657021,1707545452236,-500.0,0.00024657,2]
[313657022,1707545452245,-500.0,0.00024657,2]
[313657023,1707545452255,-526.30037811,0.00024657,2]
[313657024,1707545452265,-4255.52,0.00024657,2]
[313657025,1707545452275,-500.0,0.00024657,2]
[313657026,1707545452285,-500.0,0.00024657,2]
[313657027,1707545452294,-1003.89,0.00024657,2]
[313657028,1707545452303,-500.0,0.00024657,2]
[313657029,1707545452313,-2147.45,0.00024657,2]
[313657030,1707545452323,-4766.45,0.00024657,2]
[313657031,1707545452332,-500.0,0.00024657,2]
[313657032,1707545452341,-500.0,0.00024657,2]
[313657033,1707545452351,-500.0,0.00024657,2]
[313657034,1707545452361,-1277.54,0.00024657,2]
[313657035,1707545452370,-500.0,0.00024657,2]
[313657036,1707545452380,-500.0,0.00024657,2]
[313657037,1707545452389,-500.0,0.00024657,2]
[313657038,1707545452398,-580.71,0.00024657,2]
[313657039,1707545452408,-7044.22,0.00024657,2]
[313657040,1707545452418,-14473.93,0.00024657,2]
[313657041,1707545452427,-28119.07,0.00024657,2]
[313657042,1707545452436,-500.0,0.00024657,2]
[313657043,1707545452446,-500.0,0.00024657,2]
[313657044,1707545452456,-500.0,0.00024657,2]
[313657045,1707545452465,-500.0,0.00024657,2]
[313657046,1707545452474,-1787.47,0.00024657,2]
[313657047,1707545452484,-1074.11,0.00024657,2]
[313657048,1707545452493,-22082.31,0.00024657,2]
[313657049,1707545452502,-500.0,0.00024657,2]
[313657050,1707545452512,-3811.37,0.00024657,2]
[313657051,1707545452521,-500.0,0.00024657,2]
[313657052,1707545452530,-3712.65,0.00024657,2]
[313657053,1707545452540,-500.0,0.00024657,2]
[313657054,1707545452549,-183.66108613,0.00024657,2]
[313657055,1707545452559,-500.0,0.00024657,2]
[313657056,1707545452568,-606.15,0.00024657,2]
[313657057,1707545452577,-500.0,0.00024657,2]
[313657058,1707545452587,-589.61816286,0.00024657,2]
[313657059,1707545452596,-500.0,0.00024657,2]
[313657060,1707545452606,-549.77,0.00024657,2]
[313657061,1707545452616,-1997.3,0.00024657,2]
[313657062,1707545452625,-500.0,0.00024657,2]
[313657063,1707545452634,-500.0,0.00024657,2]
[313657064,1707545452644,-500.0,0.00024657,2]
[313657065,1707545452653,-500.0,0.00024657,2]
[313657066,1707545452663,-4932.86,0.00024657,2]
[313657067,1707545452672,-500.0,0.00024657,2]
[313657068,1707545452681,-500.0,0.00024657,2]
[313657069,1707545452690,-500.0,0.00024657,2]
[313657070,1707545452699,-787.06,0.00024657,2]
[313657071,1707545452709,-806.97,0.00024657,2]
[313657072,1707545452723,-1072.75,0.00024657,2]
[313657073,1707545452732,-500.0,0.00024657,2]
[313657074,1707545452741,-500.0,0.00024657,2]
[313657075,1707545452750,-3454.53,0.00024657,2]
[313657076,1707545452761,-525.26072406,0.00024657,2]
[313657077,1707545452770,-1857.65,0.00024657,2]
[313657078,1707545452779,-1894.01,0.00024657,2]
[313657079,1707545452790,-500.0,0.00024657,2]
[313657080,1707545452800,-576.66,0.00024657,2]
[313657081,1707545452809,-2647.77,0.00024657,2]
[313657082,1707545452818,-675.42,0.00024657,2]
[313657083,1707545452827,-500.0,0.00024657,2]
[313657084,1707545452837,-500.0,0.00024657,2]
[313657085,1707545452846,-500.0,0.00024657,2]
[313657086,1707545452855,-500.0,0.00024657,2]
[313657087,1707545452864,-500.0,0.00024657,2]
[313657088,1707545452874,-2810.38,0.00024657,2]
[313657089,1707545452883,-1000.0,0.00024657,2]
[313657090,1707545452893,-500.0,0.00024657,2]
[313657091,1707545452902,-524.03,0.00024657,2]
[313657092,1707545452911,-500.0,0.00024657,2]
[313657093,1707545452920,-257.70949532,0.00024657,2]
[313657094,1707545452929,-9810.83,0.00024657,2]
[313657095,1707545452938,-955.64,0.00024657,2]
[313657096,1707545452947,-771.9,0.00024657,2]
[313657097,1707545452956,-7549.37,0.00024657,2]
[313657098,1707545452965,-500.0,0.00024657,2]
[313657099,1707545452975,-9845.83,0.00024657,2]
[313657100,1707545452984,-500.0,0.00024657,2]
[313657101,1707545452993,-1126.02,0.00024657,2]
[313657102,1707545453002,-500.0,0.00024657,2]
[313657103,1707545453011,-1880.44,0.00024657,2]
[313657104,1707545453020,-500.0,0.00024657,2]
[313657105,1707545453029,-500.0,0.00024657,2]
[313657106,1707545453039,-500.0,0.00024657,2]
[313657107,1707545453047,-623.89,0.00024657,2]
[313657108,1707545453057,-939.8,0.00024657,2]
[313657109,1707545453066,-500.0,0.00024657,2]
[313657110,1707545453075,-944.2,0.00024657,2]
[313657111,1707545453084,-500.0,0.00024657,2]
[313657112,1707545453094,-512.28684484,0.00024657,2]
[313657113,1707545453103,-1208.77,0.00024657,2]
[313657114,1707545453113,-3928.11,0.00024657,2]
[313657115,1707545453123,-3836.38,0.00024657,2]
[313657116,1707545453132,-500.0,0.00024657,2]
[313657117,1707545453141,-500.0,0.00024657,2]
[313657118,1707545453151,-2682.63,0.00024657,2]
[313657119,1707545453160,-500.0,0.00024657,2]
[313657120,1707545453170,-500.0,0.00024657,2]
[313657121,1707545453179,-500.0,0.00024657,2]
[313657122,1707545453188,-1474.04,0.00024657,2]
[313657123,1707545453198,-739.06,0.00024657,2]
[313657124,1707545453207,-583.9,0.00024657,2]
[313657125,1707545453216,-500.0,0.00024657,2]
[313657126,1707545453226,-2502.44,0.00024657,2]
[313657127,1707545453235,-514.81778074,0.00024657,2]
[313657128,1707545453245,-500.0,0.00024657,2]
[313657129,1707545453255,-500.0,0.00024657,2]
[313657130,1707545453265,-500.0,0.00024657,2]
[313657131,1707545453274,-500.0,0.00024657,2]
[313657132,1707545453283,-2475.16,0.00024657,2]
[313657133,1707545453293,-500.0,0.00024657,2]
[313657134,1707545453302,-500.0,0.00024657,2]
[313657135,1707545453311,-500.0,0.00024657,2]
[313657136,1707545453320,-500.0,0.00024657,2]
[313657137,1707545453329,-3160.26,0.00024657,2]
[313657138,1707545453338,-500.0,0.00024657,2]
[313657139,1707545453347,-779.69,0.00024657,2]
[313657140,1707545453356,-500.0,0.00024657,2]
[313657141,1707545453365,-8164.32,0.00024657,2]
[313657142,1707545453375,-646.96,0.00024657,2]
[313657143,1707545453385,-500.0,0.00024657,2]
[313657144,1707545453395,-820.78,0.00024657,2]
[313657145,1707545453404,-619.96,0.00024657,2]
[313657146,1707545453414,-500.0,0.00024657,2]
[313657147,1707545453423,-500.0,0.00024657,2]
[313657148,1707545453433,-500.0,0.00024657,2]
[313657149,1707545453443,-1236.7,0.00024657,2]
[313657150,1707545453452,-964.5,0.00024657,2]
[313657151,1707545453462,-500.0,0.00024657,2]
[313657152,1707545453472,-1134.33,0.00024657,2]
[313657153,1707545453481,-5901.87,0.00024657,2]
[313657154,1707545453490,-1714.25,0.00024657,2]
[313657155,1707545453500,-500.0,0.00024657,2]
[313657156,1707545453510,-780.84,0.00024657,2]
[313657157,1707545453520,-500.0,0.00024657,2]
[313657158,1707545453530,-3042.89,0.00024657,2]
[313657159,1707545453539,-1020.72,0.00024657,2]
[313657160,1707545453548,-2473.3,0.00024657,2]
[313657161,1707545453558,-500.0,0.00024657,2]
[313657162,1707545453568,-500.0,0.00024657,2]
[313657163,1707545453577,-500.0,0.00024657,2]
[313657164,1707545453588,-500.0,0.00024657,2]
[313657165,1707545453598,-500.0,0.00024657,2]
[313657166,1707545453608,-3793.59,0.00024657,2]
[313657167,1707545453617,-500.0,0.00024657,2]
[313657168,1707545453627,-841.34,0.00024657,2]
[313657169,1707545453637,-500.0,0.00024657,2]
[313657170,1707545453646,-500.0,0.00024657,2]
[313657171,1707545453655,-10773.23,0.00024657,2]
[313657172,1707545453666,-1818.74,0.00024657,2]
[313657173,1707545453676,-1521.59,0.00024657,2]
[313657174,1707545453685,-500.0,0.00024657,2]
[313657175,1707545453695,-512.98,0.00024657,2]
[313657176,1707545453705,-500.0,0.00024657,2]
[313657177,1707545453716,-3079.82,0.00024657,2]
[313657178,1707545453725,-500.0,0.00024657,2]
[313657179,1707545453734,-565.79439182,0.00024657,2]
[313657180,1707545453744,-2887.49,0.00024657,2]
[313657181,1707545453755,-983.08,0.00024657,2]
[313657182,1707545453764,-500.0,0.00024657,2]
[313657183,1707545453773,-500.0,0.00024657,2]
[313657184,1707545453782,-500.0,0.00024657,2]
[313657185,1707545453792,-3213.78,0.00024657,2]
[313657186,1707545453802,-528.14,0.00024657,2]
[313657187,1707545453811,-500.0,0.00024657,2]
[313657188,1707545453820,-2330.11,0.00024657,2]
[313657189,1707545453830,-500.0,0.00024657,2]
[313657190,1707545453840,-500.0,0.00024657,2]
[313657191,1707545453852,-548.30323439,0.00024657,2]
[313657192,1707545454264,-865.07617275,0.00024657,2]
[313657193,1707545454277,-3888.81799453,0.00024657,2]
[313657195,1707545490679,735.48905602,0.0002219,2]
[313657196,1707545866460,265.47,0.0002184,2]
[313657197,1707546434238,252.19,0.00021669,2]
[313657212,1707546631828,-150.0,0.00023452,2]
[313657213,1707546631839,-183.69338978,0.00023502,2]
[313657214,1707546631849,-250.0,0.00023519,2]
[313657215,1707546631860,-529.13,0.00023531,2]
[313657216,1707546631869,-56.71280516,0.00023538,2]
[313657217,1707546631905,-3815.10117222,0.00023538,2]
[313657218,1707546631950,-2087.58882729,0.00023538,2]
[313657219,1707546631967,-17930.59719533,0.00023538,2]
[313657220,1707546631977,-160.0,0.00023544,2]
[313657221,1707546631986,-229.25,0.00023587,2]
[313657222,1707546631996,-230.28,0.00023587,2]
[313657223,1707546632006,-2000.0,0.00023596,2]
[313657224,1707546632016,-352.58,0.00023657,2]
[313657225,1707546632026,-166.8,0.00023725,2]
[313657226,1707546632036,-252.19,0.00023933,2]
[313657227,1707546632046,-419.88,0.00024103,2]
[313657228,1707546632058,-159.41,0.00024384,2]
[313657229,1707546632070,-317.91,0.00024384,2]
[313657230,1707546632079,-1227.349803,0.00024385,2]
[313657231,1707546632089,-7367.4672,0.00024457,2]
[313657233,1707546632099,-470.9876,0.00024457,2]
[313657235,1707546632109,-1000.0,0.00024457,2]
[313657237,1707546632120,-2500.0,0.00024457,2]
[313657239,1707546632129,-27932.03817567,0.00024457,2]
[313657323,1707546637792,-840.0,0.00023842,2]
[313657324,1707546637803,-24143.27215563,0.00024457,2]
[313657325,1707546637897,-589.5796471,0.00024457,2]
[313657326,1707546638009,-11700.02257771,0.00024457,2]
[313657352,1707546645735,-1212.0,0.00024457,2]
[313657362,1707546645789,-3249.72725505,0.00024457,2]
[313657366,1707546646113,-455.8499999,0.00024457,2]
[313657367,1707546646128,-175717.51018894,0.00024457,2]
[313657368,1707546646137,-1212.26546054,0.00024457,2]
[313657369,1707546646147,-167.14,0.00024496,2]
[313657370,1707546646156,-1000.0,0.00024557,2]
[313657371,1707546646165,-2000.0,0.00024557,3]
[313657373,1707546646174,-500.0,0.00024557,2]
[313657375,1707546646183,-1000.0,0.00024557,2]
[313657377,1707546646192,-100000.0,0.00024557,2]
[313657379,1707546646201,-31351.7139,0.00024557,2]
[313657381,1707546646210,-37379.6887,0.00024557,2]
[313657383,1707546646219,-37332.46645739,0.00024557,2]
[313657394,1707546714389,222.42269,0.000222,2]
[313657395,1707546936303,257.08,0.00021441,2]
[313657396,1707547050566,627.72,0.00022501,2]
[313657397,1707547233603,392.7276336,0.00022501,7]
[313657398,1707547275003,950.7,0.00022978,2]
[313657399,1707547418387,244.22,0.00021198,2]
[313657400,1707547724318,2936.26702516,0.00021198,2]
[313657401,1707547743574,258.12,0.00022998,2]
[313657402,1707547748087,1957.51135011,0.00021198,2]
[313657403,1707547765614,1631.25945842,0.00021198,2]
[313657404,1707547783610,849.88617784,0.00021198,2]
[313657405,1707547799625,849.88617784,0.00021198,2]
[313657409,1707547823622,849.88617784,0.00021198,2]
[313657439,1707547832178,-770.34561325,0.00023018,2]
[313657440,1707547832188,-155.0,0.00023019,2]
[313657441,1707547832197,-10.43139273,0.00023024,2]
[313657442,1707547832218,-661.56860727,0.00023024,2]
[313657443,1707547832227,-250.0,0.00023024,2]
[313657444,1707547832236,-2000.0,0.00023031,2]
[313657445,1707547832246,-269.4,0.00023056,2]
[313657446,1707547832256,-157.04,0.00023079,2]
[313657447,1707547832265,-328.0,0.00023112,2]
[313657448,1707547832274,-165.02905419,0.00023124,2]
[313657449,1707547832283,-174.26,0.00023265,2]
[313657450,1707547832292,-378.1,0.00023265,2]
[313657452,1707547832302,-244.22,0.00023461,2]
[313657454,1707547832310,-174.26,0.00023508,2]
[313657456,1707547832320,-165.02905419,0.00023602,2]
[313657458,1707547832329,-714.87,0.00023738,2]
[313657460,1707547832338,-296.93991567,0.00023738,2]
[313657462,1707547832350,-417.04008433,0.00023738,2]
[313657464,1707547832359,-155.7475784,0.00023739,2]
[313657465,1707547832372,-561.2624216,0.00023739,2]
[313657466,1707547832381,-720.42,0.00023741,2]
[313657467,1707547832390,-150.0,0.00023741,2]
[313657468,1707547832401,-514.82395442,0.00023741,2]